[Event "*** Titled Tuesday Blitz"]
[Site "Chess.com"]
[Date "2020.01.07"]
[Round "4"]
[White "patrisiii123"]
[Black "Perecke"]
[Result "1-0"]
[WhiteElo "2468"]
[BlackElo "2163"]
[TimeControl "180+2"]
[EndTime "13:55:23 PST"]
[Termination "patrisiii123 won by resignation"]

1. e4 {[%clk 0:03:01.9]} 1... e5 {[%clk 0:02:56.9]} 2. Nf3 {[%clk 0:03:01]} 2...
Nc6 {[%clk 0:02:57.9]} 3. Bc4 {[%clk 0:03:02.1]} 3... Be7 {[%clk 0:02:58.3]} 4.
c3 {[%clk 0:03:00.2]} 4... Nf6 {[%clk 0:02:58.7]} 5. d3 {[%clk 0:02:49.6]} 5...
d5 {[%clk 0:02:59.6]} 6. exd5 {[%clk 0:02:47.3]} 6... Nxd5 {[%clk 0:03:01.5]} 7.
O-O {[%clk 0:02:45.6]} 7... O-O {[%clk 0:03:02.7]} 8. Re1 {[%clk 0:02:45]} 8...
Bf6 {[%clk 0:03:03.9]} 9. Nbd2 {[%clk 0:02:40.7]} 9... g6 {[%clk 0:02:49]} 10.
Ne4 {[%clk 0:02:37.1]} 10... Bg7 {[%clk 0:02:50.1]} 11. Bg5 {[%clk 0:02:35.4]}
11... f6 {[%clk 0:02:48.4]} 12. Qb3 {[%clk 0:02:36]} 12... Be6 {[%clk
0:02:43.4]} 13. Nc5 {[%clk 0:02:25.8]} 13... Bf7 {[%clk 0:02:41.8]} 14. Qxb7
{[%clk 0:02:21.2]} 14... Na5 {[%clk 0:02:37.8]} 15. Qa6 {[%clk 0:02:22.4]} 15...
Nxc4 {[%clk 0:02:37.3]} 16. dxc4 {[%clk 0:02:22.8]} 16... Nb6 {[%clk 0:02:36.6]}
17. Be3 {[%clk 0:02:15]} 17... Bxc4 {[%clk 0:02:34.5]} 18. Qa5 {[%clk 0:02:11]}
18... Qe7 {[%clk 0:02:21.6]} 19. Rad1 {[%clk 0:02:02.2]} 19... Rfd8 {[%clk
0:02:09.9]} 20. Rxd8+ {[%clk 0:01:49.8]} 20... Qxd8 {[%clk 0:02:03.7]} 21. b3
{[%clk 0:01:41.7]} 21... Bf7 {[%clk 0:01:46.5]} 22. h4 {[%clk 0:01:32.3]} 22...
h6 {[%clk 0:01:34]} 23. c4 {[%clk 0:01:29.8]} 23... f5 {[%clk 0:01:25.3]} 24. h5
{[%clk 0:01:26.8]} 24... f4 {[%clk 0:01:00.4]} 25. hxg6 {[%clk 0:01:22.6]} 25...
Bxg6 {[%clk 0:01:00.2]} 26. Bc1 {[%clk 0:01:21.2]} 26... Qd6 {[%clk 0:00:52.7]}
27. Bb2 {[%clk 0:01:16.1]} 27... Re8 {[%clk 0:00:41.6]} 28. Ne4 {[%clk 0:00:54]}
28... Qc6 {[%clk 0:00:22.6]} 29. Qb5 {[%clk 0:00:37.6]} 29... Qxb5 {[%clk
0:00:16.2]} 30. cxb5 {[%clk 0:00:39.5]} 30... Nd5 {[%clk 0:00:11]} 31. Nc5
{[%clk 0:00:35]} 31... e4 {[%clk 0:00:10.7]} 32. Bxg7 {[%clk 0:00:33.7]} 32...
Kxg7 {[%clk 0:00:11.7]} 33. Nh4 {[%clk 0:00:34]} 33... Bh7 {[%clk 0:00:09.9]}
34. Rd1 {[%clk 0:00:31.6]} 34... Nf6 {[%clk 0:00:08.1]} 35. a4 {[%clk
0:00:29.1]} 35... e3 {[%clk 0:00:09.1]} 36. fxe3 {[%clk 0:00:30.2]} 36... fxe3
{[%clk 0:00:10.5]} 37. Re1 {[%clk 0:00:29.7]} 37... Nd5 {[%clk 0:00:08]} 38. Nf3
{[%clk 0:00:29.5]} 38... Nf4 {[%clk 0:00:07.6]} 39. Nd4 {[%clk 0:00:29.4]} 39...
e2 {[%clk 0:00:05.9]} 40. Kf2 {[%clk 0:00:29.1]} 40... Nd3+ {[%clk 0:00:06.6]}
41. Nxd3 {[%clk 0:00:30]} 41... Bxd3 {[%clk 0:00:08.5]} 42. Nxe2 {[%clk
0:00:30.3]} 42... Bc2 {[%clk 0:00:04.7]} 43. Nd4 {[%clk 0:00:29.9]} 43... Rf8+
{[%clk 0:00:05.8]} 44. Ke3 {[%clk 0:00:30.8]} 44... Bh7 {[%clk 0:00:05.4]} 45.
Kd2 {[%clk 0:00:31.6]} 45... Rd8 {[%clk 0:00:05.6]} 46. Kc3 {[%clk 0:00:32.4]}
46... Kf7 {[%clk 0:00:05]} 47. Rf1+ {[%clk 0:00:32.9]} 47... Ke7 {[%clk
0:00:05.6]} 48. Nc6+ {[%clk 0:00:33.7]} 1-0

[Event "*** Titled Tuesday Blitz"]
[Site "Chess.com"]
[Date "2020.01.07"]
[Round "4"]
[White "Lifeek"]
[Black "Chimpinha"]
[Result "1/2-1/2"]
[WhiteElo "2232"]
[BlackElo "2384"]
[TimeControl "180+2"]
[EndTime "13:55:24 PST"]
[Termination "Game drawn by repetition"]

1. e4 {[%clk 0:03:01.9]} 1... e6 {[%clk 0:03:00.5]} 2. d4 {[%clk 0:03:02.7]}
2... d5 {[%clk 0:03:01.2]} 3. e5 {[%clk 0:03:04.2]} 3... c5 {[%clk 0:03:01.8]}
4. c3 {[%clk 0:03:06.1]} 4... Nc6 {[%clk 0:03:02.5]} 5. Nf3 {[%clk 0:03:07.4]}
5... Bd7 {[%clk 0:03:02.6]} 6. Be2 {[%clk 0:03:07.6]} 6... Nge7 {[%clk
0:03:02.4]} 7. Na3 {[%clk 0:03:06.9]} 7... cxd4 {[%clk 0:03:02.4]} 8. cxd4
{[%clk 0:03:07.6]} 8... Nf5 {[%clk 0:03:04]} 9. Nc2 {[%clk 0:03:09.1]} 9... Qb6
{[%clk 0:03:04.6]} 10. O-O {[%clk 0:03:02.5]} 10... Na5 {[%clk 0:03:05.2]} 11.
b4 {[%clk 0:02:51.7]} 11... Nc4 {[%clk 0:03:03]} 12. Bxc4 {[%clk 0:02:26.9]}
12... dxc4 {[%clk 0:03:03.7]} 13. d5 {[%clk 0:02:28.8]} 13... exd5 {[%clk
0:02:28.4]} 14. Qxd5 {[%clk 0:02:28.3]} 14... Be6 {[%clk 0:02:28.3]} 15. Qe4
{[%clk 0:02:27]} 15... Be7 {[%clk 0:02:02.8]} 16. Ne3 {[%clk 0:02:17.4]} 16...
Nxe3 {[%clk 0:01:56.1]} 17. Bxe3 {[%clk 0:02:19.3]} 17... Qc6 {[%clk 0:01:51.1]}
18. Qxc6+ {[%clk 0:02:18]} 18... bxc6 {[%clk 0:01:51.7]} 19. a3 {[%clk
0:02:18.3]} 19... O-O {[%clk 0:01:42.2]} 20. Rfd1 {[%clk 0:02:06.2]} 20... a5
{[%clk 0:01:40.5]} 21. Bc5 {[%clk 0:01:54.8]} 21... Bxc5 {[%clk 0:01:36.1]} 22.
bxc5 {[%clk 0:01:56.7]} 22... Rab8 {[%clk 0:01:31]} 23. Nd4 {[%clk 0:01:50.6]}
23... Bd5 {[%clk 0:01:30.4]} 24. Nf5 {[%clk 0:01:52.1]} 24... Rfe8 {[%clk
0:01:22]} 25. f4 {[%clk 0:01:49.8]} 25... Rb2 {[%clk 0:01:18.2]} 26. Ne3 {[%clk
0:01:39.6]} 26... Be6 {[%clk 0:00:58.8]} 27. Rac1 {[%clk 0:01:38.6]} 27... Rb3
{[%clk 0:00:49.3]} 28. Nxc4 {[%clk 0:01:39.4]} 28... Bxc4 {[%clk 0:00:48.1]} 29.
Rxc4 {[%clk 0:01:41.3]} 29... Rxa3 {[%clk 0:00:49.5]} 30. Rd6 {[%clk 0:01:37.5]}
30... Rc8 {[%clk 0:00:49.5]} 31. f5 {[%clk 0:01:15.2]} 31... Re3 {[%clk
0:00:42.9]} 32. e6 {[%clk 0:01:16.4]} 32... fxe6 {[%clk 0:00:42.9]} 33. fxe6
{[%clk 0:01:18.3]} 33... Kf8 {[%clk 0:00:33]} 34. Rf4+ {[%clk 0:01:17.2]} 34...
Ke8 {[%clk 0:00:31.5]} 35. Kf2 {[%clk 0:01:05.9]} 35... Re5 {[%clk 0:00:29.6]}
36. Rd7 {[%clk 0:00:51.6]} 36... Rxe6 {[%clk 0:00:21.2]} 37. Rxg7 {[%clk
0:00:52.9]} 37... Re7 {[%clk 0:00:14]} 38. Rg3 {[%clk 0:00:40.8]} 38... Kd7
{[%clk 0:00:13.3]} 39. Rf6 {[%clk 0:00:32.9]} 39... Rce8 {[%clk 0:00:09.6]} 40.
Rd3+ {[%clk 0:00:25.5]} 40... Kc7 {[%clk 0:00:09.8]} 41. Rdd6 {[%clk 0:00:26.7]}
41... Re2+ {[%clk 0:00:10.5]} 42. Kf3 {[%clk 0:00:27.1]} 42... R8e3+ {[%clk
0:00:11.4]} 43. Kf4 {[%clk 0:00:27.5]} 43... Re4+ {[%clk 0:00:12.5]} 44. Kf3
{[%clk 0:00:21]} 44... R4e3+ {[%clk 0:00:13.3]} 45. Kf4 {[%clk 0:00:20.1]} 45...
Re4+ {[%clk 0:00:14.4]} 46. Kf3 {[%clk 0:00:21.6]} 46... R2e3+ {[%clk
0:00:15.3]} 47. Kf2 {[%clk 0:00:22.7]} 47... Re2+ {[%clk 0:00:16.4]} 48. Kf3
{[%clk 0:00:24.2]} 1/2-1/2

[Event "*** Titled Tuesday Blitz"]
[Site "Chess.com"]
[Date "2020.01.07"]
[Round "4"]
[White "Ray_Yang"]
[Black "1e41-0"]
[Result "1/2-1/2"]
[WhiteElo "2280"]
[BlackElo "2536"]
[TimeControl "180+2"]
[EndTime "13:55:25 PST"]
[Termination "Game drawn - insufficient material"]

1. d4 {[%clk 0:03:01.9]} 1... Nf6 {[%clk 0:02:59.8]} 2. a3 {[%clk 0:03:03.1]}
2... g6 {[%clk 0:02:55.6]} 3. Nf3 {[%clk 0:03:03.8]} 3... Bg7 {[%clk 0:02:57.5]}
4. g3 {[%clk 0:03:05.3]} 4... O-O {[%clk 0:02:58.6]} 5. Bg2 {[%clk 0:03:06.8]}
5... d5 {[%clk 0:02:58.2]} 6. O-O {[%clk 0:03:07.6]} 6... Ne4 {[%clk 0:02:57.6]}
7. c3 {[%clk 0:02:57]} 7... a5 {[%clk 0:02:55.4]} 8. Nfd2 {[%clk 0:02:57.6]}
8... Nf6 {[%clk 0:02:50.4]} 9. c4 {[%clk 0:02:47.5]} 9... c6 {[%clk 0:02:49]}
10. Nc3 {[%clk 0:02:42.6]} 10... Bf5 {[%clk 0:02:49.7]} 11. cxd5 {[%clk
0:02:39.7]} 11... cxd5 {[%clk 0:02:48.8]} 12. Qb3 {[%clk 0:02:39.7]} 12... Nc6
{[%clk 0:02:49]} 13. e3 {[%clk 0:02:32]} 13... Bd3 {[%clk 0:02:41.3]} 14. Re1
{[%clk 0:02:21.6]} 14... e6 {[%clk 0:02:40.9]} 15. Qxb7 {[%clk 0:02:15]} 15...
Qe8 {[%clk 0:02:32.6]} 16. Qb3 {[%clk 0:02:12.2]} 16... Rb8 {[%clk 0:02:32.7]}
17. Qd1 {[%clk 0:02:12.4]} 17... e5 {[%clk 0:02:30.9]} 18. dxe5 {[%clk
0:02:05.8]} 18... Nxe5 {[%clk 0:02:31.9]} 19. e4 {[%clk 0:01:55.7]} 19... d4
{[%clk 0:02:29]} 20. Nd5 {[%clk 0:01:55.6]} 20... Nfg4 {[%clk 0:02:16.4]} 21. h3
{[%clk 0:01:46]} 21... Nxf2 {[%clk 0:02:11.1]} 22. Kxf2 {[%clk 0:01:43.1]} 22...
f5 {[%clk 0:02:12.3]} 23. Kg1 {[%clk 0:01:40.4]} 23... Qf7 {[%clk 0:01:54.6]}
24. Nf4 {[%clk 0:01:35.7]} 24... fxe4 {[%clk 0:01:43.5]} 25. Nxe4 {[%clk
0:01:27.4]} 25... h6 {[%clk 0:01:33.9]} 26. Nxd3 {[%clk 0:01:06.6]} 26... Nxd3
{[%clk 0:01:35.8]} 27. Qxd3 {[%clk 0:01:07.2]} 27... Rb3 {[%clk 0:01:36.3]} 28.
Qf1 {[%clk 0:00:33.1]} 28... Qc7 {[%clk 0:01:33.8]} 29. Qe2 {[%clk 0:00:21.4]}
29... d3 {[%clk 0:01:33]} 30. Qg4 {[%clk 0:00:21.9]} 30... Qf7 {[%clk
0:01:22.6]} 31. Be3 {[%clk 0:00:22.6]} 31... h5 {[%clk 0:01:20.8]} 32. Qd1
{[%clk 0:00:22.7]} 32... Rxb2 {[%clk 0:01:07]} 33. Rf1 {[%clk 0:00:22.2]} 33...
Qc4 {[%clk 0:01:07.3]} 34. Rxf8+ {[%clk 0:00:22.8]} 34... Bxf8 {[%clk
0:01:07.4]} 35. Rc1 {[%clk 0:00:23.9]} 35... Rc2 {[%clk 0:01:06.3]} 36. Rxc2
{[%clk 0:00:23.4]} 36... dxc2 {[%clk 0:01:08.2]} 37. Qc1 {[%clk 0:00:23.8]}
37... Qd3 {[%clk 0:01:06.1]} 38. Kh2 {[%clk 0:00:24.1]} 38... Bxa3 {[%clk
0:01:06.2]} 39. Qf1 {[%clk 0:00:23.3]} 39... Qxf1 {[%clk 0:00:55.8]} 40. Bxf1
{[%clk 0:00:22.9]} 40... c1=Q {[%clk 0:00:57.7]} 41. Bxc1 {[%clk 0:00:23.1]}
41... Bxc1 {[%clk 0:00:59.6]} 42. Nc3 {[%clk 0:00:23.6]} 42... Kg7 {[%clk
0:00:58.3]} 43. Na4 {[%clk 0:00:24.9]} 43... Be3 {[%clk 0:00:58.2]} 44. Kg2
{[%clk 0:00:26]} 44... Bd4 {[%clk 0:00:59.4]} 45. Kf3 {[%clk 0:00:27.2]} 45...
Kf6 {[%clk 0:01:00.3]} 46. Bd3 {[%clk 0:00:27.9]} 46... g5 {[%clk 0:00:59.4]}
47. h4 {[%clk 0:00:28.9]} 47... gxh4 {[%clk 0:01:00.1]} 48. gxh4 {[%clk
0:00:29.9]} 48... Bg1 {[%clk 0:00:55.7]} 49. Ke4 {[%clk 0:00:28.2]} 49... Bf2
{[%clk 0:00:56]} 50. Be2 {[%clk 0:00:29.3]} 50... Bxh4 {[%clk 0:00:55.9]} 51.
Bxh5 {[%clk 0:00:29.8]} 51... Be1 {[%clk 0:00:57.1]} 52. Kd5 {[%clk 0:00:29.6]}
52... Kf5 {[%clk 0:00:57]} 53. Be2 {[%clk 0:00:30.2]} 53... Kf4 {[%clk
0:00:58.1]} 54. Kc4 {[%clk 0:00:31.3]} 54... Ke3 {[%clk 0:00:59.4]} 55. Bf1
{[%clk 0:00:32.1]} 55... Ke4 {[%clk 0:00:59.7]} 56. Kb5 {[%clk 0:00:32.8]} 56...
Kd4 {[%clk 0:00:59.5]} 57. Bc4 {[%clk 0:00:32.6]} 57... Bb4 {[%clk 0:00:58.8]}
58. Ba2 {[%clk 0:00:32.7]} 58... Kd3 {[%clk 0:00:58.4]} 59. Nc5+ {[%clk
0:00:31.9]} 59... Kc2 {[%clk 0:00:58.2]} 60. Nb3 {[%clk 0:00:29.8]} 60... Kb2
{[%clk 0:00:54.6]} 61. Nxa5 {[%clk 0:00:30.1]} 61... Bxa5 {[%clk 0:00:55.6]}
1/2-1/2

[Event "*** Titled Tuesday Blitz"]
[Site "Chess.com"]
[Date "2020.01.07"]
[Round "4"]
[White "enzovsky"]
[Black "Naruto-K"]
[Result "0-1"]
[WhiteElo "2247"]
[BlackElo "2496"]
[TimeControl "180+2"]
[EndTime "13:55:38 PST"]
[Termination "Naruto-K won by resignation"]

1. e4 {[%clk 0:03:01.9]} 1... e6 {[%clk 0:02:58.4]} 2. d4 {[%clk 0:03:02.6]}
2... d5 {[%clk 0:02:59.6]} 3. Nc3 {[%clk 0:03:04.2]} 3... Nf6 {[%clk 0:02:59.9]}
4. e5 {[%clk 0:03:05.5]} 4... Nfd7 {[%clk 0:03:00.8]} 5. f4 {[%clk 0:03:07.1]}
5... c5 {[%clk 0:03:01.4]} 6. Nf3 {[%clk 0:03:08.6]} 6... Nc6 {[%clk 0:03:00.3]}
7. Be3 {[%clk 0:03:09.9]} 7... Be7 {[%clk 0:02:59.9]} 8. Qd2 {[%clk 0:03:10.8]}
8... O-O {[%clk 0:02:59.8]} 9. dxc5 {[%clk 0:03:11.8]} 9... Qa5 {[%clk
0:02:59.8]} 10. O-O-O {[%clk 0:02:52.6]} 10... b6 {[%clk 0:02:59.7]} 11. Bb5
{[%clk 0:02:04.8]} 11... Nb4 {[%clk 0:02:59.2]} 12. c6 {[%clk 0:01:47.7]} 12...
Nxa2+ {[%clk 0:02:54.3]} 13. Nxa2 {[%clk 0:01:47.5]} 13... Qxa2 {[%clk
0:02:56.2]} 14. Qc3 {[%clk 0:01:31.1]} 14... Nc5 {[%clk 0:02:45.1]} 15. Qa3
{[%clk 0:01:19.9]} 15... Qxa3 {[%clk 0:02:28.5]} 16. bxa3 {[%clk 0:01:21.8]}
16... a6 {[%clk 0:02:14.8]} 17. Bd3 {[%clk 0:00:59.5]} 17... Na4 {[%clk
0:01:47]} 18. Kd2 {[%clk 0:00:59.5]} 18... Bxa3 {[%clk 0:01:46.1]} 19. c3 {[%clk
0:00:59.4]} 19... b5 {[%clk 0:01:25.3]} 20. Bc2 {[%clk 0:00:43.2]} 20... Nb2
{[%clk 0:01:20.5]} 21. Ra1 {[%clk 0:00:33.6]} 21... Nc4+ {[%clk 0:01:21]} 22.
Ke2 {[%clk 0:00:30.4]} 22... Bb2 {[%clk 0:01:21.8]} 23. Bc5 {[%clk 0:00:20.6]}
23... Bxc3 {[%clk 0:00:45.4]} 24. Bxf8 {[%clk 0:00:17.1]} 24... Bxa1 {[%clk
0:00:45.4]} 25. Bxg7 {[%clk 0:00:11.6]} 25... Kxg7 {[%clk 0:00:45.6]} 26. Rxa1
{[%clk 0:00:11.9]} 26... Ra7 {[%clk 0:00:46.4]} 27. Nd4 {[%clk 0:00:12.6]} 27...
Rc7 {[%clk 0:00:46.4]} 28. Rb1 {[%clk 0:00:08]} 28... h6 {[%clk 0:00:46.1]} 29.
Rb3 {[%clk 0:00:08.9]} 29... f6 {[%clk 0:00:46.6]} 30. Rg3+ {[%clk 0:00:09.6]}
30... Kf7 {[%clk 0:00:48.1]} 31. Bg6+ {[%clk 0:00:08.5]} 31... Ke7 {[%clk
0:00:47]} 32. Bh5 {[%clk 0:00:09.9]} 32... fxe5 {[%clk 0:00:47.4]} 33. Rg7+
{[%clk 0:00:07.6]} 33... Kd6 {[%clk 0:00:48.4]} 34. fxe5+ {[%clk 0:00:03.9]}
34... Nxe5 {[%clk 0:00:50.3]} 35. Rg8 {[%clk 0:00:04.7]} 35... Nxc6 {[%clk
0:00:49.4]} 36. Nxc6 {[%clk 0:00:03.8]} 36... Rxc6 {[%clk 0:00:51.2]} 37. Be8
{[%clk 0:00:05.4]} 37... Rc4 {[%clk 0:00:45.7]} 38. g4 {[%clk 0:00:03.6]} 38...
b4 {[%clk 0:00:39.8]} 39. h4 {[%clk 0:00:04]} 39... b3 {[%clk 0:00:41]} 40. g5
{[%clk 0:00:04.6]} 40... b2 {[%clk 0:00:38.7]} 41. Bg6 {[%clk 0:00:05.4]} 41...
Rxh4 {[%clk 0:00:39.6]} 42. Rxc8 {[%clk 0:00:04.2]} 42... hxg5 {[%clk
0:00:39.3]} 43. Rb8 {[%clk 0:00:04.9]} 43... Ke5 {[%clk 0:00:40.5]} 44. Kf3
{[%clk 0:00:04.1]} 44... Rh2 {[%clk 0:00:36.1]} 45. Rb6 {[%clk 0:00:02.7]} 45...
a5 {[%clk 0:00:36.9]} 46. Bd3 {[%clk 0:00:02.7]} 46... a4 {[%clk 0:00:37.3]} 47.
Be2 {[%clk 0:00:04.1]} 47... a3 {[%clk 0:00:37.4]} 48. Rb3 {[%clk 0:00:04.6]}
48... Rh3+ {[%clk 0:00:36.1]} 49. Kg2 {[%clk 0:00:05.5]} 49... Rxb3 {[%clk
0:00:38]} 0-1

[Event "*** Titled Tuesday Blitz"]
[Site "Chess.com"]
[Date "2020.01.07"]
[Round "4"]
[White "chessdude"]
[Black "wannabe2700"]
[Result "0-1"]
[WhiteElo "2543"]
[BlackElo "2768"]
[TimeControl "180+2"]
[EndTime "13:55:46 PST"]
[Termination "wannabe2700 won by resignation"]

1. d4 {[%clk 0:03:01.9]} 1... Nf6 {[%clk 0:03:00.3]} 2. c4 {[%clk 0:03:02]} 2...
e6 {[%clk 0:03:01.5]} 3. g3 {[%clk 0:03:03]} 3... d5 {[%clk 0:03:02.5]} 4. Bg2
{[%clk 0:03:04.2]} 4... Be7 {[%clk 0:03:04.1]} 5. Nf3 {[%clk 0:03:04.6]} 5...
O-O {[%clk 0:03:05.5]} 6. O-O {[%clk 0:03:06.2]} 6... dxc4 {[%clk 0:03:07.2]} 7.
Qc2 {[%clk 0:03:07.1]} 7... b5 {[%clk 0:03:08.5]} 8. a4 {[%clk 0:03:06.5]} 8...
b4 {[%clk 0:03:07.9]} 9. Nfd2 {[%clk 0:03:05.1]} 9... c6 {[%clk 0:03:06.3]} 10.
Nxc4 {[%clk 0:03:06]} 10... Qxd4 {[%clk 0:03:07.7]} 11. Be3 {[%clk 0:03:04.8]}
11... Qd8 {[%clk 0:03:06.6]} 12. Nbd2 {[%clk 0:03:05.7]} 12... Nd5 {[%clk
0:02:58.6]} 13. Nb3 {[%clk 0:03:06]} 13... Ba6 {[%clk 0:02:34]} 14. Bc5 {[%clk
0:02:40.6]} 14... Nd7 {[%clk 0:02:27]} 15. Bxe7 {[%clk 0:02:37.9]} 15... Qxe7
{[%clk 0:02:27.9]} 16. Rfd1 {[%clk 0:02:37.3]} 16... Rac8 {[%clk 0:02:26.4]} 17.
Rac1 {[%clk 0:02:37.1]} 17... c5 {[%clk 0:02:18]} 18. Nba5 {[%clk 0:02:19.3]}
18... N7b6 {[%clk 0:02:17.9]} 19. e4 {[%clk 0:02:14.4]} 19... Nxc4 {[%clk
0:02:15.7]} 20. Nxc4 {[%clk 0:02:14]} 20... Nb6 {[%clk 0:02:16.1]} 21. Nd6
{[%clk 0:02:13]} 21... Rc7 {[%clk 0:02:13.9]} 22. e5 {[%clk 0:02:14]} 22... Rb8
{[%clk 0:02:03.2]} 23. a5 {[%clk 0:02:13.4]} 23... Nd5 {[%clk 0:01:52.5]} 24.
Bxd5 {[%clk 0:02:07]} 24... exd5 {[%clk 0:01:53.4]} 25. Rxd5 {[%clk 0:02:07.9]}
25... c4 {[%clk 0:01:55]} 26. Qe4 {[%clk 0:01:51.3]} 26... Qe6 {[%clk 0:01:51]}
27. Rd4 {[%clk 0:01:45.4]} 27... Rc5 {[%clk 0:01:37.3]} 28. f4 {[%clk
0:00:28.8]} 28... f6 {[%clk 0:01:30.7]} 29. Re1 {[%clk 0:00:27.1]} 29... fxe5
{[%clk 0:01:30.1]} 30. fxe5 {[%clk 0:00:27.9]} 30... g6 {[%clk 0:01:25.5]} 31.
Qf4 {[%clk 0:00:26.7]} 31... Rf8 {[%clk 0:01:18.4]} 32. Qe3 {[%clk 0:00:27.3]}
32... Rxa5 {[%clk 0:01:01.6]} 33. Rf4 {[%clk 0:00:28.1]} 33... Rxf4 {[%clk
0:00:48.9]} 34. Qxf4 {[%clk 0:00:29]} 34... Rd5 {[%clk 0:00:45.7]} 35. Ne4
{[%clk 0:00:26.5]} 35... Rd8 {[%clk 0:00:45.2]} 36. Nf6+ {[%clk 0:00:25.7]}
36... Kh8 {[%clk 0:00:44.4]} 37. Qh4 {[%clk 0:00:25.5]} 37... Qe7 {[%clk
0:00:45.1]} 38. Qf4 {[%clk 0:00:15.5]} 38... Qc5+ {[%clk 0:00:45]} 39. Kg2
{[%clk 0:00:16]} 39... Bb7+ {[%clk 0:00:44.4]} 40. Kh3 {[%clk 0:00:17.3]} 40...
Bc8+ {[%clk 0:00:44.4]} 41. e6 {[%clk 0:00:18.6]} 41... Kg7 {[%clk 0:00:41.4]}
42. Kg2 {[%clk 0:00:17.9]} 42... Qc6+ {[%clk 0:00:41.3]} 43. Kg1 {[%clk
0:00:16.5]} 43... Qb6+ {[%clk 0:00:42]} 44. Re3 {[%clk 0:00:17.7]} 44... Bxe6
{[%clk 0:00:38.5]} 45. Qe5 {[%clk 0:00:18.7]} 45... Kf7 {[%clk 0:00:37]} 46. Ne4
{[%clk 0:00:18.7]} 46... Qxe3+ {[%clk 0:00:37]} 47. Kg2 {[%clk 0:00:19.4]} 47...
Rd2+ {[%clk 0:00:37.7]} 48. Kf1 {[%clk 0:00:20.4]} 48... Qe2+ {[%clk 0:00:38.5]}
0-1

[Event "*** Titled Tuesday Blitz"]
[Site "Chess.com"]
[Date "2020.01.07"]
[Round "4"]
[White "Atakishiyev04"]
[Black "Indianlad"]
[Result "1-0"]
[WhiteElo "2739"]
[BlackElo "2920"]
[TimeControl "180+2"]
[EndTime "13:55:47 PST"]
[Termination "Atakishiyev04 won on time"]

1. d4 {[%clk 0:03:01.9]} 1... Nf6 {[%clk 0:03:00.8]} 2. c4 {[%clk 0:02:59.1]}
2... e6 {[%clk 0:03:01.8]} 3. Nf3 {[%clk 0:02:59.9]} 3... d5 {[%clk 0:03:02.5]}
4. Nc3 {[%clk 0:02:59.3]} 4... c6 {[%clk 0:03:03.9]} 5. e3 {[%clk 0:02:58.3]}
5... Nbd7 {[%clk 0:03:04.9]} 6. Qc2 {[%clk 0:02:59.7]} 6... b6 {[%clk
0:03:06.4]} 7. g4 {[%clk 0:02:44.2]} 7... Nxg4 {[%clk 0:02:59.4]} 8. e4 {[%clk
0:02:45.3]} 8... dxe4 {[%clk 0:02:55.6]} 9. Qxe4 {[%clk 0:02:46.6]} 9... Ngf6
{[%clk 0:02:54]} 10. Qxc6 {[%clk 0:02:44.8]} 10... Rb8 {[%clk 0:02:55.2]} 11.
Qb5 {[%clk 0:02:34.7]} 11... Bb7 {[%clk 0:02:54.7]} 12. Be2 {[%clk 0:02:34.4]}
12... Be7 {[%clk 0:02:55.5]} 13. Rg1 {[%clk 0:02:33.5]} 13... g6 {[%clk
0:02:50.4]} 14. Bh6 {[%clk 0:02:31.6]} 14... a6 {[%clk 0:02:51.5]} 15. Qb3
{[%clk 0:02:32.2]} 15... Bf8 {[%clk 0:02:45.1]} 16. Bf4 {[%clk 0:02:26.7]} 16...
Rc8 {[%clk 0:02:46.1]} 17. O-O-O {[%clk 0:02:21.1]} 17... Nh5 {[%clk 0:02:29.9]}
18. Bg5 {[%clk 0:02:04.5]} 18... Be7 {[%clk 0:02:30.6]} 19. Bh6 {[%clk 0:02:02]}
19... Qc7 {[%clk 0:02:24.4]} 20. Kb1 {[%clk 0:01:58.8]} 20... Nf4 {[%clk
0:02:20.6]} 21. Rc1 {[%clk 0:01:54.2]} 21... Nxe2 {[%clk 0:02:16.3]} 22. Nxe2
{[%clk 0:01:51.8]} 22... Bf8 {[%clk 0:02:14.2]} 23. Bf4 {[%clk 0:01:49.6]} 23...
Bd6 {[%clk 0:02:15.3]} 24. Bh6 {[%clk 0:01:49.9]} 24... Qd8 {[%clk 0:01:25.6]}
25. Rge1 {[%clk 0:01:32.3]} 25... Qf6 {[%clk 0:01:23.7]} 26. d5 {[%clk
0:01:31.6]} 26... Nc5 {[%clk 0:01:21]} 27. Qe3 {[%clk 0:01:27.1]} 27... Qf5+
{[%clk 0:01:01]} 28. Ka1 {[%clk 0:01:27.7]} 28... Qe4 {[%clk 0:00:59.3]} 29. Nc3
{[%clk 0:01:23.7]} 29... Qxe3 {[%clk 0:01:00.1]} 30. Rxe3 {[%clk 0:01:25.3]}
30... Kd7 {[%clk 0:00:59.7]} 31. b4 {[%clk 0:01:24.6]} 31... exd5 {[%clk
0:00:55.9]} 32. bxc5 {[%clk 0:00:55.5]} 32... Rxc5 {[%clk 0:00:55.8]} 33. cxd5
{[%clk 0:00:51.7]} 33... Rhc8 {[%clk 0:00:55.5]} 34. Rd3 {[%clk 0:00:51]} 34...
b5 {[%clk 0:00:56.2]} 35. a3 {[%clk 0:00:50.7]} 35... a5 {[%clk 0:00:54.2]} 36.
Be3 {[%clk 0:00:50]} 36... Rc4 {[%clk 0:00:48.4]} 37. Kb2 {[%clk 0:00:49.2]}
37... Ba6 {[%clk 0:00:41.9]} 38. Rd4 {[%clk 0:00:39.2]} 38... b4 {[%clk
0:00:36]} 39. axb4 {[%clk 0:00:40]} 39... axb4 {[%clk 0:00:36.4]} 40. Ne4 {[%clk
0:00:40.9]} 40... Rxc1 {[%clk 0:00:34.1]} 41. Bxc1 {[%clk 0:00:42.8]} 41... b3
{[%clk 0:00:20.5]} 42. Nxd6 {[%clk 0:00:36.6]} 42... Rc2+ {[%clk 0:00:16.8]} 43.
Kb1 {[%clk 0:00:30.5]} 43... Kxd6 {[%clk 0:00:16]} 44. Ba3+ {[%clk 0:00:31.9]}
44... Kc7 {[%clk 0:00:13.4]} 45. d6+ {[%clk 0:00:32.9]} 45... Kd8 {[%clk
0:00:14.1]} 46. d7 {[%clk 0:00:32.5]} 46... Re2 {[%clk 0:00:06.3]} 47. Bb4
{[%clk 0:00:25.1]} 1-0